Cogmind - Beta 14 *** ADVENTURER MODE // 2024.09.11 @ 22:49:18 // Winter2019/RPGLIKE Player: DeepestRoots Result: Destroyed by 99-TNT with 99-TNT's Nukerbomber Performance ------------- Evolutions (3) 1500 Regions Visited (14) 2800 Robots Destroyed (310) 1550 Value Destroyed (8619) 8619 Prototype IDs (79) 1580 Alien Tech Used (0) 0 Bonus (1220) 1220 TOTAL SCORE: 17269 Bonus ------- High Alert Combat Kills 691 Follower Combat Kills 14 Aligned with FarCom 300 Met Imprinter 300 Friendly Fire -85 Cogmind --------- Core Integrity 0/600 Matter 300/300 Energy 500/530 System Corruption 0% Temperature Cool (0) Movement Flying (6) Location -7/Zion Parts ------- > --- POWER (2) -------- Cooled Ion Engine Enhanced Fission Core > --- PROPULSION (6) --- Cooled VTOL Module Cooled VTOL Module Cooled VTOL Module Cooled Nuclear Pulse Thruster Cooled Nuclear Pulse Thruster Cooled Nuclear Pulse Thruster > --- UTILITY (8) ------ Experimental Heat Sink Improved Signal Interpreter Energy Filter Nanoactuators Hacking Suite Makeshift Hacking Suite Makeshift System Shield Corruption Screen > --- WEAPON (4) ------- Storm Laser > --- INVENTORY (5) ---- Makeshift Hacking Suite Improved Trap Extractor (3/6 Shock) Field Lobotomy Kit (5) Chainsword Peak State ------------ > --- POWER ------------ Cooled Ion Engine Enhanced Fission Core > --- PROPULSION ------- Cooled VTOL Module Cooled VTOL Module Cooled VTOL Module Cooled Nuclear Pulse Thruster Cooled Nuclear Pulse Thruster Cooled Nuclear Pulse Thruster > --- UTILITY ---------- Experimental Heat Sink Improved Signal Interpreter Energy Filter Nanoactuators Hacking Suite Makeshift Hacking Suite Makeshift System Shield Corruption Screen > --- WEAPON ----------- Storm Laser > --- INVENTORY -------- Makeshift Hacking Suite Improved Trap Extractor Field Lobotomy Kit Chainsword [Rating: 108] Favorites ----------- Power Ion Engine Engine Ion Engine Power Core Enhanced Fission Core Propulsion Wheel Treads Light Treads Leg Advanced Myomer Leg Wheel Wheel Flight Unit Cooled VTOL Module Utility Seismic Detector Device Seismic Detector Storage High-capacity Battery Processor Improved Signal Interpreter Hackware Hacking Suite Protection Light Armor Plating Weapon Small Laser Energy Gun Small Laser Energy Cannon Plasma Cannon Ballistic Gun Minigun Launcher Guided EMP Blaster Special Weapon Field Lobotomy Kit Slashing Weapon Chainsword Special Melee Weapon Datajack Build | -11 -10 -10 -9 -9 -9 -8 -8 -8 -7 -7 -7 -7 -7 -7 ------- Run | Yrd Mat Min Mat Min Exi Min Mat Sto Fac Was Fac Low Low Zio Slots Evolved 16 | 3 . . 2 . . . 1 7 2 . . . . 1 Power 1 | . . . . . . . . 1 . . . . . . Propulsion 5 | 1 . . . . . . . 4 . . . . . . Utility 7 | 1 . . 1 . . . 1 2 2 . . . . . Weapon 3 | 1 . . 1 . . . . . . . . . . 1 Parts Attached 175 | 9 6 5 29 3 17 . 9 26 27 . 30 . 1 13 Power 6 | 1 1 . 1 . . . . 2 1 . . . . . Engine 5 | 1 1 . 1 . . . . 2 . . . . . . Core 1 | . . . . . . . . . 1 . . . . . Reactor . | . . . . . . . . . . . . . . . Propulsion 25 | 4 . . . . 2 . 3 8 8 . . . . . Treads 1 | 1 . . . . . . . . . . . . . . Leg 1 | . . . . . 1 . . . . . . . . . Wheel 7 | 3 . . . . 1 . 3 . . . . . . . Hover . | . . . . . . . . . . . . . . . Flight 16 | . . . . . . . . 8 8 . . . . . Utility 67 | 2 3 2 3 1 6 . 5 7 14 . 19 . 1 4 Device 50 | 2 1 2 2 . 5 . 4 3 10 . 18 . . 3 Storage 2 | . 1 . . . . . . . 1 . . . . . Processor 6 | . . . . . 1 . . 4 1 . . . . . Hackware 5 | . . . . . . . . . 2 . 1 . 1 1 Protection 4 | . 1 . 1 1 . . 1 . . . . . . . Artifact . | . . . . . . . . . . . . . . . Weapon 77 | 2 2 3 25 2 9 . 1 9 4 . 11 . . 9 Energy Gun 11 | 1 2 . 1 . . . . . . . 3 . . 4 Energy Cannon 9 | . . 1 3 . . . 1 1 1 . 2 . . . Ballistic Gun 27 | 1 . 2 12 1 7 . . 4 . . . . . . Ballistic Cannon . | . . . . . . . . . . . . . . . Launcher 19 | . . . 9 1 2 . . 4 . . 1 . . 2 Special Weapon 1 | . . . . . . . . . . . . . . 1 Impact Weapon . | . . . . . . . . . . . . . . . Slashing Weapon 8 | . . . . . . . . . 3 . 4 . . 1 Piercing Weapon . | . . . . . . . . . . . . . . . Special Melee Weapon 2 | . . . . . . . . . . . 1 . . 1 Unidentified Prototypes 19 | . . . . . 4 . . 2 5 . 6 . . 2 Parts Lost . | . . . . . . . . . . . . . . . Power . | . . . . . . . . . . . . . . . Propulsion . | . . . . . . . . . . . . . . . Utility . | . . . . . . . . . . . . . . . Weapon . | . . . . . . . . . . . . . . . Highest Loss Streak . | . . . . . . . . . . . . . . . To Critical Strikes . | . . . . . . . . . . . . . . . Average Slot Usage (%) 94 | . 99 100 100 100 86 100 96 89 93 94 94 94 94 87 Engine 9 | . 14 14 12 11 11 11 10 11 8 5 5 5 5 5 Core 1 | . . . . . . . . . 2 5 5 5 5 5 Wheel 13 | . 28 28 25 22 22 22 16 6 . . . . . . Flight 11 | . . . . . . . . 10 34 31 31 31 31 30 Device 19 | . 11 26 25 22 22 22 20 20 17 15 15 15 15 15 Processor 6 | . . . . . 2 11 10 9 11 15 12 10 10 10 Hackware 3 | . . . . . . . . . 5 10 12 15 15 15 Protection 5 | . 10 1 11 11 8 . 8 7 . . . . . . Energy Gun 1 | . 14 6 . . . . . . . . . . . 2 Energy Cannon 4 | . . 7 11 . . . 9 7 . . . . . . Ballistic Gun 12 | . 14 14 12 33 18 33 20 14 . . . . . . Launcher 1 | . . . . . 1 . . 2 5 5 5 5 5 2 Slashing Weapon 1 | . . . . . . . . . 4 5 4 5 5 2 Peak Build Rating 108 | 6 8 12 19 19 37 31 45 70 99 98 99 94 95 108 Average Rating 25 | 4 7 10 13 18 18 31 35 46 80 98 95 93 94 100 On Entrance 47 | . 6 8 11 19 19 31 31 39 65 98 98 94 94 95 Naked Turns . | . . . . . . . . . . . . . . . Heaviest Build 45 | 8 13 11 25 24 25 19 26 32 38 36 41 38 38 45 Greatest Support 53 | 20 20 20 20 20 20 20 28 42 51 53 50 38 38 50 Greatest Overweight (x) 2 | . . . 1 1 1 . 2 1 . . 1 . . 1 Average Overweight (x) . | . . . . 1 . . . . . . . . . . Largest Inventory Capacity 5 | 3 3 3 3 4 5 5 5 5 5 5 5 5 5 5 Average Capacity 2 | . 3 3 3 3 4 5 5 5 5 5 5 5 5 5 Most Carried 5 | 3 3 3 3 4 5 5 5 5 5 5 5 5 5 5 Average Carried 2 | . 2 2 2 3 3 5 4 4 4 5 4 4 5 4 Final Capacity 5 | 3 3 3 3 4 5 5 5 5 5 5 5 5 5 5 Final Carried 5 | 3 3 3 3 4 5 5 5 5 5 5 5 5 5 4 Class Distribution -------------------- 46% | Mutant 16% | Hacker-Mutant 15% | Hacker-Scout 12% | Hacker-Gunner 5% | Hacker-Tank Dominant Class ---------------- Hacker-Mutant | -10/Materials Hacker-Mutant | -10/Mines Hacker-Mutant | -9/Materials Hacker-Tank | -9/Mines Hacker-Mutant | -9/Exiles Hacker-Gunner | -8/Mines Hacker-Gunner | -8/Materials Hacker-Gunner | -8/Storage Hacker-Scout | -7/Factory Hacker-Scout | -7/Waste Hacker-Scout | -7/Factory Hacker-Scout | -7/Lower Caves Hacker-Scout | -7/Lower Caves Hacker-Scout | -7/Zion Resources | -11 -10 -10 -9 -9 -9 -8 -8 -8 -7 -7 -7 -7 -7 -7 ----------- Run | Yrd Mat Min Mat Min Exi Min Mat Sto Fac Was Fac Low Low Zio Matter Collected 6398 | 290 130 87 997 481 541 56 496 661 969 . 800 110 140 640 Remotely . | . . . . . . . . . . . . . . . Salvage Created 10925 | 203 749 340 1379 496 145 . 749 987 2795 . 1409 106 325 1242 Parts 671 | 13 36 19 138 27 5 . 48 44 159 . 94 18 7 63 Haulers Intercepted 18 | . 2 . 6 . . . 1 1 7 . 1 . . . Recyclers Shooed 4 | . 1 . 1 1 . . . . . . 1 . . . Parts Field Recycled . | . . . . . . . . . . . . . . . Retrieved Matter . | . . . . . . . . . . . . . . . Parts Self-Destructed 6 | . . . . . . . . . . . . 6 . . Prevented 16 | . . . . . . . . . . . . 9 7 . Kills | -11 -10 -10 -9 -9 -9 -8 -8 -8 -7 -7 -7 -7 -7 -7 ------- Run | Yrd Mat Min Mat Min Exi Min Mat Sto Fac Was Fac Low Low Zio Combat Hostiles Destroyed 187 | . 12 6 38 17 4 . 19 20 38 . 16 5 5 7 Melee 18 | . . . . . . . . . 11 . 5 1 . 1 Guns 66 | . 12 5 12 14 1 . 13 8 . . . . . 1 Cannons 34 | . . . 18 . . . 6 10 . . . . . . AOE 48 | . . . 8 3 3 . . . 24 . 7 2 . 1 Classes Destroyed 21 | 3 5 1 1 2 1 . . 2 2 . . 2 . 2 Worker 27 | 2 1 2 7 2 . . . 1 8 . 4 . . . Builder 16 | . 1 . 2 . . . . . 9 . 4 . . . Tunneler 6 | 3 . 2 . 1 . . . . . . . . . . Hauler 18 | . 2 . 6 . . . 1 1 7 . 1 . . . Recycler 13 | 1 2 . 1 2 . . . . 2 . 5 . . . Operator 7 | . . . 1 . . . 1 1 1 . 3 . . . Turret 1 | . . . . . 1 . . . . . . . . . Watcher 26 | . 3 . 5 . . . 4 2 6 . 6 . . . Swarmer 34 | . 4 . 14 4 . . 6 . 6 . . . . . Grunt 82 | . 8 4 14 5 . . 4 12 20 . 9 2 4 . Brawler 1 | . . . . . . . . 1 . . . . . . Duelist 1 | . . . . . . . . . . . . 1 . . Protector 2 | . . . . . . . . . 2 . . . . . Sentry 38 | . . 2 10 . . . 9 6 5 . 6 . . . Demolisher 1 | . . . . 1 . . . . . . . . . . Hunter 8 | . . . . . . . . 1 4 . 1 1 1 . Programmer 1 | . . . . . . . . . 1 . . . . . Zionite 26 | . . . . . . . . . . . . . . 26 Master Thief 1 | . . . . . . . . . . . . 1 . . Assembled 10 | . . . . 7 3 . . . . . . . . . Savage 1 | . . . . . . . . . . . . . . 1 Butcher 2 | . . . . . . . . . . . . . . 2 Martyr 1 | . . . . . . . . . . . . . . 1 Marauder 2 | . . . . . . . . . . . . . . 2 Best Kill Streak 30 | 3 5 2 6 3 3 . 5 4 19 . 6 4 5 30 Combat Bots Only 10 | . 4 2 6 3 3 . 2 4 10 . 3 3 5 2 Max Kills in Single Turn 4 | 1 2 2 3 3 1 . 1 1 4 . 3 1 1 3 Gunslinging 1 | . 1 1 . 1 . . . . . . . . . . Exploded 3 | . . . 3 3 1 . . . 3 . 2 1 . 1 Melee 1 | . . . . . . . . . 1 . 1 1 . 1 Uniques/NPCs Destroyed 2 | . . . . . 1 . . . . . . . . 1 8R-AWN (-9/Exiles) Imprinter (-7/Zion) Combat | -11 -10 -10 -9 -9 -9 -8 -8 -8 -7 -7 -7 -7 -7 -7 -------- Run | Yrd Mat Min Mat Min Exi Min Mat Sto Fac Was Fac Low Low Zio Hostile Shots Fired 691 | . 62 31 109 39 55 . 52 81 153 . 18 6 3 82 Missed 286 | . 23 12 36 8 14 . 13 28 86 . 14 2 1 49 Damage Taken 4326 | . 345 202 602 347 423 . 292 470 598 . 64 17 20 946 Core 3269 | . 254 129 410 269 301 . 223 320 473 . 49 17 16 808 Absorbed by Shields 606 | . . . 49 124 157 . 112 164 . . . . . . Redirected to Core 2375 | . 161 108 331 189 228 . 171 239 384 . 49 . 16 499 Ignored by Resistances 1414 | . 110 57 198 135 160 . 117 184 185 . 19 5 6 238 Core Remaining (%) 92 | 100 . 100 . . . 73 . 97 . . . . . . Volleys Fired 691 | 23 70 35 133 44 44 . 52 79 69 . 50 9 15 68 Largest 3 | 1 2 2 3 3 3 . 3 3 1 . 1 1 1 1 Hottest 250 | 40 70 81 93 71 71 . 128 128 50 . 70 50 50 250 Shots Fired 1190 | 23 138 54 233 130 86 . 150 165 69 . 50 9 15 68 Gun 716 | 23 138 41 109 129 68 . 102 86 . . 1 . . 19 Cannon 233 | . . 13 103 . . . 48 69 . . . . . . Launcher 241 | . . . 21 1 18 . . 10 69 . 49 9 15 49 Special . | . . . . . . . . . . . . . . . Kinetic 585 | . 70 22 108 129 68 . 102 86 . . . . . . Thermal 362 | 23 68 32 103 . . . 48 69 . . . . . 19 Explosive 40 | . . . 21 1 18 . . . . . . . . . Electromagnetic 203 | . . . 1 . . . . 10 69 . 50 9 15 49 Robot Hit Streak 51 | 9 28 33 13 22 40 . 26 51 27 . 33 . . 15 Robot Miss Streak 5 | 1 4 1 3 4 1 . 3 1 . . 1 . . 5 Penetration Max . | . . . . . . . . . . . . . . . Secondary Targets 7 | . 2 2 . 3 . . . . . . . . . . Max Gunslinging Chain 1 | . 1 1 . 1 . . . . . . . . . . Shots Hit Robots 825 | 19 110 40 127 83 61 . 112 119 62 . 47 5 . 40 Core Hits 471 | 7 37 14 71 35 24 . 39 39 112 . 44 6 3 40 Critical Kills 2 | . . . . 1 . . . 1 . . . . . . Critical Parts Destroyed 2 | . 1 . . . . . . 1 . . . . . . Critical Strikes 19 | . 6 2 . 1 2 . . 2 4 . 2 . . . Burn 7 | . 5 2 . . . . . . . . . . . . Meltdown 1 | . . . . . . . . 1 . . . . . . Destroy 5 | . 1 . . 1 2 . . 1 . . . . . . Sever 6 | . . . . . . . . . 4 . 2 . . . Melee Attacks 195 | . . . . . . . . . 92 . 72 7 . 24 Impact . | . . . . . . . . . . . . . . . Slashing 192 | . . . . . . . . . 92 . 70 7 . 23 Piercing . | . . . . . . . . . . . . . . . Sneak Attacks 22 | . . . . . . . . . 8 . 14 . . . Combat Hostiles 5 | . . . . . . . . . 3 . 2 . . . Follow-up Attacks . | . . . . . . . . . . . . . . . Damage Inflicted 27750 | 221 1141 612 3380 1474 1545 . 2206 2739 6805 . 4044 482 589 2512 Guns 7745 | 221 1141 395 1083 1365 926 . 1393 948 . . 32 . . 241 Cannons 3954 | . . 86 1414 . . . 813 1641 . . . . . . Explosions 10209 | . . 131 883 109 619 . . 150 4231 . 1796 278 589 1423 Melee 5842 | . . . . . . . . . 2574 . 2216 204 . 848 Ramming . | . . . . . . . . . . . . . . . Kinetic 6260 | . 415 130 1083 1365 926 . 1393 948 . . . . . . Thermal 6510 | 221 726 482 1477 . . . 813 1641 583 . 201 . . 366 Explosive 1599 | . . . 820 109 619 . . . 51 . . . . . Electromagnetic 7539 | . . . . . . . . 150 3597 . 1627 278 589 1298 Impact . | . . . . . . . . . . . . . . . Slashing 5842 | . . . . . . . . . 2574 . 2216 204 . 848 Piercing . | . . . . . . . . . . . . . . . Highest Corruption 1 | . . . 1 1 1 1 . . 1 . . . . . Average Corruption 1 | . . . 1 1 1 1 . . 1 . . . . . Corruption Purged 1 | . . . . . . . . . 1 . . . . . Corruption Blocked 7 | . . . . . . . . . . 7 . . . . Effects 39 | . . . 19 9 7 2 . . 2 . . . . . Message Errors 7 | . . . 4 1 2 . . . . . . . . . Matter Fused 10 | . . . 6 1 2 . . . 1 . . . . . Heat Flow Errors 4 | . . . 3 1 . . . . . . . . . . Energy Discharges 6 | . . . 1 3 1 . . . 1 . . . . . Parts Rejected 1 | . . . . 1 . . . . . . . . . . Data Loss (minor) 4 | . . . 2 . 1 1 . . . . . . . . Data Loss (major) 1 | . . . . . . 1 . . . . . . . . Misfires 2 | . . . 1 1 . . . . . . . . . . Alerts 3 | . . . 2 . 1 . . . . . . . . . Weapon Failures 1 | . . . . 1 . . . . . . . . . . Overload Shots . | . . . . . . . . . . . . . . . Overflow Damage 1362 | . . . 74 10 28 . 46 21 314 . 759 6 . 104 Projectiles 70 | . . . 3 . . . 46 21 . . . . . . Explosions 223 | . . . 71 10 28 . . . 48 . 63 . . 3 Melee 1069 | . . . . . . . . . 266 . 696 6 . 101 Knockbacks . | . . . . . . . . . . . . . . . Impact . | . . . . . . . . . . . . . . . Kinetic . | . . . . . . . . . . . . . . . Secondary . | . . . . . . . . . . . . . . . Self-Inflicted Damage 67 | . . . 15 13 . . . . 22 . 17 . . . Shots 6 | . . . 1 1 . . . . 3 . 1 . . . Rammed . | . . . . . . . . . . . . . . . Targets Rammed . | . . . . . . . . . . . . . . . Kicked . | . . . . . . . . . . . . . . . Crushed . | . . . . . . . . . . . . . . . Highest Temperature 320 | . 139 35 232 202 . . 8 6 20 38 16 3 3 320 Average Temperature 39 | . 19 9 16 114 . . 7 6 7 27 5 3 2 106 Received Heat Transfer 1416 | . 198 111 279 114 . . 154 278 156 . 36 . 18 72 Siege Activations . | . . . . . . . . . . . . . . . Robots Corrupted 22 | . . . . . . . . 1 4 . 4 2 5 6 Combat Hostiles 18 | . . . . . . . . . 3 . 4 2 5 4 Parts Fried 48 | . . . . . . . . 2 25 . 10 2 4 5 Impact Corruptions . | . . . . . . . . . . . . . . . Robots Melted 4 | . 1 1 . . . . . 2 . . . . . . Combat Hostiles 3 | . . 1 . . . . . 2 . . . . . . Parts Melted 35 | . 5 7 9 . . . 1 7 3 . . . . 3 Heat Transferred 12559 | 500 2255 1199 2603 . . . 1500 3000 752 . 300 . . 450 Parts Sabotaged . | . . . . . . . . . . . . . . . Parts Stolen 2 | . . . . . . . . . . . . 2 . . Parts Stripped . | . . . . . . . . . . . . . . . Power Chain Reactions 20 | . . . . . . . . . 14 . 2 . . 4 Alert | -11 -10 -10 -9 -9 -9 -8 -8 -8 -7 -7 -7 -7 -7 -7 ------- Run | Yrd Mat Min Mat Min Exi Min Mat Sto Fac Was Fac Low Low Zio Peak Influence 1126 | 30 278 182 670 372 . . 198 319 1126 339 589 . . . Initial 309 | . . . . 182 . . . 19 4 309 209 . . . Average 113 | . 144 33 245 266 . . 80 124 608 322 392 . . . Maximum Alert Level 4 | . 1 . 2 1 . . . 1 4 1 2 . . . Low Security (%) 78 | 100 69 100 50 22 . 100 100 75 15 . . . . . Level 1 12 | . 30 . 22 77 . . . 25 13 100 60 . . . Level 2 6 | . . . 27 . . . . . 26 . 40 . . . Level 3 2 | . . . . . . . . . 42 . . . . . Level 4 . | . . . . . . . . . 1 . . . . . Level 5 . | . . . . . . . . . . . . . . . High Security . | . . . . . . . . . . . . . . . Max Security . | . . . . . . . . . . . . . . . Squads Dispatched 32 | . 2 1 4 1 . . . 3 13 . 8 . . . Investigation 15 | . 2 1 4 . . . . 1 4 . 3 . . . Extermination 1 | . . . . . . . . . 1 . . . . . Reinforcement 13 | . . . . 1 . . . 1 7 . 4 . . . Assault . | . . . . . . . . . . . . . . . Garrison 3 | . . . . . . . . 1 1 . 1 . . . Intercept . | . . . . . . . . . . . . . . . Searches Triggered . | . . . . . . . . . . . . . . . Construction Impeded 6 | . . . . 1 . . . . 2 . 3 . . . Haulers Reinforced 6 | . . . . . . . . . 5 . 1 . . . Active Scanning Responses . | . . . . . . . . . . . . . . . Cargo Convoy Interrupts 2 | . . . . . . . . . 1 . 1 . . . Stealth | -11 -10 -10 -9 -9 -9 -8 -8 -8 -7 -7 -7 -7 -7 -7 --------- Run | Yrd Mat Min Mat Min Exi Min Mat Sto Fac Was Fac Low Low Zio Distress Signals 16 | . 2 . 3 1 . . 4 . 3 . 3 . . . Communications Jammed 8 | . . . . . . . . . . . 8 . . . Distress Signals 8 | . . . . . . . . . . . 8 . . . Times Spotted 296 | . 19 6 49 21 5 . 29 28 48 6 37 2 9 37 Peak Tracking Total 10 | . 7 2 5 4 10 . 4 4 10 6 8 3 8 7 Tactical Retreats 24 | . . . 2 . 1 . 1 1 9 . 5 1 2 2 Traps | -11 -10 -10 -9 -9 -9 -8 -8 -8 -7 -7 -7 -7 -7 -7 ------- Run | Yrd Mat Min Mat Min Exi Min Mat Sto Fac Was Fac Low Low Zio Traps Triggered 8 | . 1 . 1 . . . . 2 4 . . . . . Indirectly 2 | . . . . . . . . . 2 . . . . . Trap Hack Attempts 19 | . . . . . . . . . . . 19 . . . Triggered 2 | . . . . . . . . . . . 2 . . . Disarmed . | . . . . . . . . . . . . . . . Reprogrammed 6 | . . . . . . . . . . . 6 . . . Reused 3 | . . . . . . . . . . . 3 . . . Traps Extracted 6 | . . . . . . . . . . . 6 . . . Installed 3 | . . . . . . . . . . . 3 . . . Triggered 4 | . . . . . . . . . . . 3 1 . . Most Traps Carried 6 | . . . . . . . . . . . 6 3 3 3 Machines | -11 -10 -10 -9 -9 -9 -8 -8 -8 -7 -7 -7 -7 -7 -7 ---------- Run | Yrd Mat Min Mat Min Exi Min Mat Sto Fac Was Fac Low Low Zio Machines Disabled 58 | . . 17 13 5 5 . . 5 2 . 9 . . 2 Max in Single Turn 15 | . . 15 2 1 1 . . 1 1 . 5 . . 2 Garrison Access 9 | . . . . . . . 1 1 3 . 4 . . . Machines Repaired . | . . . . . . . . . . . . . . . Machines Dismantled . | . . . . . . . . . . . . . . . Machines Sabotaged . | . . . . . . . . . . . . . . . Overloaded Fab Kills . | . . . . . . . . . . . . . . . Hacking | -11 -10 -10 -9 -9 -9 -8 -8 -8 -7 -7 -7 -7 -7 -7 --------- Run | Yrd Mat Min Mat Min Exi Min Mat Sto Fac Was Fac Low Low Zio Machines Accessed 107 | . 10 3 16 . 1 . 11 13 27 . 25 . . 1 Terminals 74 | . 8 2 12 . . . 10 11 18 . 13 . . . Fabricators 5 | . . . . . . . . . 3 . 2 . . . Repair Stations 1 | . . . . . . . . . . . 1 . . . Recycling Units 11 | . 2 . 2 . . . . 1 2 . 4 . . . Scanalyzers 4 | . . . 2 . . . . . 1 . 1 . . . Garrison Access 9 | . . . . . . . 1 1 3 . 4 . . . Total Hacks 335 | . 33 9 58 . 1 . 46 38 89 . 55 . . 6 Successful 204 | . 23 7 35 . 1 . 29 22 49 . 32 . . 6 Failed 128 | . 9 2 22 . . . 17 15 40 . 23 . . . Catastrophic 12 | . . . 2 . . . 2 . 3 . 5 . . . Database Lockouts 3 | . 1 . 1 . . . . 1 . . . . . . Manual 187 | . 21 8 33 . 1 . 27 20 48 . 29 . . . Terminals 275 | . 31 8 54 . . . 45 36 69 . 32 . . . Fabricators 13 | . . . . . . . . . 8 . 5 . . . Repair Stations 2 | . . . . . . . . . . . 2 . . . Recycling Units 20 | . 2 . 2 . . . . 1 6 . 9 . . . Scanalyzers 5 | . . . 2 . . . . . 1 . 2 . . . Garrison Access 12 | . . . . . . . 1 1 5 . 5 . . . Terminal Hacks 107 | . 14 4 20 . 1 . 16 13 23 . 10 . . 6 Part Schematic 10 | . . . . . . . . 1 1 . 2 . . 6 Robot Analysis 17 | . 5 . 2 . . . 3 . 5 . 2 . . . Prototype ID Bank 24 | . 3 2 4 . . . 4 3 6 . 2 . . . Open Door 5 | . . 1 . . . . . 4 . . . . . . Branch Access Points 2 | . . . . . . . 1 . 1 . . . . . Machine Index 1 | . . . . . . . . . . . 1 . . . Alert Level 3 | . . . 1 . . . 1 1 . . . . . . Unreport Threat 7 | . 1 . 4 . . . 2 . . . . . . . Locate Traps 18 | . 3 . 4 . . . 4 3 4 . . . . . Recall Investigation 1 | . . . . . . . . . . . 1 . . . Hauler Manifests 13 | . 1 . 2 . . . 1 1 6 . 2 . . . Zone Layout 5 | . 1 1 3 . . . . . . . . . . . Derelict Proto ID Bank 1 | . . . . . 1 . . . . . . . . . Fabricator Hacks 7 | . . . . . . . . . 4 . 3 . . . Network Status 2 | . . . . . . . . . 1 . 1 . . . Load Schematic 2 | . . . . . . . . . 1 . 1 . . . Build 3 | . . . . . . . . . 2 . 1 . . . Repair Station Hacks 2 | . . . . . . . . . . . 2 . . . Scan Component 1 | . . . . . . . . . . . 1 . . . Repair 1 | . . . . . . . . . . . 1 . . . Recycling Unit Hacks . | . . . . . . . . . . . . . . . Scanalyzer 2 | . . . . . . . . . 1 . 1 . . . Insert Component 2 | . . . . . . . . . 1 . 1 . . . Garrison Access Hacks 9 | . . . . . . . 1 1 3 . 4 . . . Seal Access 9 | . . . . . . . 1 1 3 . 4 . . . Unauthorized Hacks 77 | . 9 3 15 . . . 12 8 18 . 12 . . . Terminals 58 | . 7 3 11 . . . 12 7 13 . 5 . . . Track 5 | . . 1 1 . . . 2 . 1 . . . . . Assimilate 5 | . . . . . . . 1 . 2 . 2 . . . Botnet 12 | . 2 . 2 . . . 2 2 2 . 2 . . . Detonate 1 | . . . 1 . . . . . . . . . . . Disrupt 2 | . . 2 . . . . . . . . . . . . Operators 4 | . . . 1 . . . 1 . 1 . 1 . . . Skim 29 | . 5 . 6 . . . 6 5 7 . . . . . Fabricators 1 | . . . . . . . . . 1 . . . . . Haulers 1 | . . . . . . . . . 1 . . . . . Repair Stations . | . . . . . . . . . . . . . . . Recycling Units 16 | . 2 . 2 . . . . 1 4 . 7 . . . Monitor 1 | . . . . . . . . . . . 1 . . . Reject 1 | . . . . . . . . . 1 . . . . . Recyclers 3 | . . . . . . . . . 1 . 2 . . . Mask 7 | . . . . . . . . 1 2 . 4 . . . Tunnel 4 | . 2 . 2 . . . . . . . . . . . Scanalyzers 2 | . . . 2 . . . . . . . . . . . Extract 2 | . . . 2 . . . . . . . . . . . Garrison Access . | . . . . . . . . . . . . . . . Data Cores Recovered 7 | . . . 1 . . . 1 1 1 . 3 . . . Used 3 | . . . . . . . 1 . 1 . 1 . . . Hacking Detections 67 | . 6 2 9 . . . 10 9 19 . 12 . . . Full Trace Events 7 | . . . . . . . . . 4 . 3 . . . Feedback Events . | . . . . . . . . . . . . . . . Feedback Blocked . | . . . . . . . . . . . . . . . Robot Schematics Acquired 2 | . . . . . . . . . . . . . . 2 Robots Built . | . . . . . . . . . . . . . . . Authchips . | . . . . . . . . . . . . . . . Time . | . . . . . . . . . . . . . . . Total Robot Build Rating . | . . . . . . . . . . . . . . . Part Schematics Acquired 28 | . . . 2 . . . . 1 1 . 2 . . 22 Parts Built 5 | . . . . . . . . . 3 . 2 . . . Authchips . | . . . . . . . . . . . . . . . Time 137 | . . . . . . . . . 95 . 42 . . . Total Part Build Rating 20 | . . . . . . . . . 12 . 8 . . . Parts Repaired 1 | . . . . . . . . . . . 1 . . . Time 124 | . . . . . . . . . . . 124 . . . Parts Recycled . | . . . . . . . . . . . . . . . Recycled Matter . | . . . . . . . . . . . . . . . Retrieved Matter . | . . . . . . . . . . . . . . . Retrieved Components . | . . . . . . . . . . . . . . . Parts Scanalyzed 1 | . . . . . . . . . . . 1 . . . Part Schematics Acquired . | . . . . . . . . . . . . . . . Parts Damaged 1 | . . . . . . . . . . . 1 . . . Bothacking | -11 -10 -10 -9 -9 -9 -8 -8 -8 -7 -7 -7 -7 -7 -7 ------------ Run | Yrd Mat Min Mat Min Exi Min Mat Sto Fac Was Fac Low Low Zio Used RIF Installer . | . . . . . . . . . . . . . . . Robots Hacked 2 | . . . . . . . . . . . 1 . . 1 Non-combat 1 | . . . . . . . . . . . 1 . . . Combat 1 | . . . . . . . . . . . . . . 1 Robot Hacks Applied 2 | . . . . . . . . . . . 1 . . 1 parse_system 1 | . . . . . . . . . . . . . . 1 find_fabricator 1 | . . . . . . . . . . . 1 . . . Relay Couplers Released . | . . . . . . . . . . . . . . . Fabnet Peak Effective % . | . . . . . . . . . . . . . . . Robots Rewired . | . . . . . . . . . . . . . . . Allies Hacked . | . . . . . . . . . . . . . . . Hacks Repelled . | . . . . . . . . . . . . . . . Allies | -11 -10 -10 -9 -9 -9 -8 -8 -8 -7 -7 -7 -7 -7 -7 -------- Run | Yrd Mat Min Mat Min Exi Min Mat Sto Fac Was Fac Low Low Zio Total Allies 6 | . . . . 3 . . . . 1 . 2 . . . Largest Group 2 | . . . . 2 . . . . 1 . 2 1 1 . Highest-Rated Group 62 | . . . . 62 . . . . 10 . 36 24 24 . Highest-Rated Ally 31 | . . . . 31 . . . . 10 . 26 24 24 . Total Orders 6 | . . . . . . . . . . . 2 . 4 . STAY 3 | . . . . . . . . . . . 1 . 2 . FOLLOW 3 | . . . . . . . . . . . 1 . 2 . Ally Attacks 18 | . . . . 18 . . . . . . . . . . Total Damage 210 | . . . . 210 . . . . . . . . . . Kills 4 | . . . . 4 . . . . . . . . . . Allies Corrupted . | . . . . . . . . . . . . . . . Allies Melted . | . . . . . . . . . . . . . . . Intel | -11 -10 -10 -9 -9 -9 -8 -8 -8 -7 -7 -7 -7 -7 -7 ------- Run | Yrd Mat Min Mat Min Exi Min Mat Sto Fac Was Fac Low Low Zio Robot Analysis Total 17 | . 5 . 2 . . . 3 . 5 . 2 . . . Derelict Logs Recovered 10 | . . 2 . 2 . . . . . . . 3 1 2 Drone Launches . | . . . . . . . . . . . . . . . Drone Recoveries . | . . . . . . . . . . . . . . . Exploration | -11 -10 -10 -9 -9 -9 -8 -8 -8 -7 -7 -7 -7 -7 -7 ------------- Run | Yrd Mat Min Mat Min Exi Min Mat Sto Fac Was Fac Low Low Zio Turns Passed 28174 | 13143 893 1312 2135 960 986 242 1538 2352 1443 36 1680 288 224 942 Spaces Moved 22013 | 1403 760 1203 1790 679 943 303 1199 2470 3219 135 3748 910 882 2369 Core 4 | 4 . . . . . . . . . . . . . . Treads 1238 | 1238 . . . . . . . . . . . . . . Legs . | . . . . . . . . . . . . . . . Wheels 7997 | 161 760 1203 1790 679 943 303 1199 959 . . . . . . Hover . | . . . . . . . . . . . . . . . Flight 12774 | . . . . . . . . 1511 3219 135 3748 910 882 2369 Fastest Speed 5 | 50 80 80 80 95 80 80 80 21 5 5 6 20 20 6 Average Speed 53 | 150 80 80 89 95 83 80 96 55 20 19 20 20 20 22 Slowest Speed 160 | 160 80 80 95 95 95 80 120 115 21 20 87 20 20 87 Overloaded Moves 51 | . . . . . . . . . 8 4 9 . . 30 Propulsion Burnouts . | . . . . . . . . . . . . . . . Robots Hopped 62 | . . . . . . . . 32 21 . 8 1 . . Cave-ins Triggered . | . . . . . . . . . . . . . . . Exploration Rate (%) 88 | 114 99 101 99 98 69 50 81 97 81 98 86 95 76 86 Regions Visited 14 Branch Regions 8 Pre-discovered Areas 21 | . 4 2 4 1 . . 3 2 1 . . 1 . 3 Known Exits Taken 10 | . 1 1 1 1 . 1 1 1 . . 1 1 1 . Unknown Exits Taken 2 | 1 . . . . 1 . . . . . . . . . Scrap Searched 9 | . . 1 . 1 . . . . . . . 4 2 1 Spaces Dug 132 | . . . 60 11 . . 3 3 32 . 23 . . . Terrain Destroyed 585 | . . 38 281 30 25 . 13 3 83 . 101 . . 11 Melee 55 | . . . . . . . . . 32 . 23 . . . Projectile 17 | . . . 1 . . . 13 3 . . . . . . AOE 513 | . . 38 280 30 25 . . . 51 . 78 . . 11 Terrain Rammed . | . . . . . . . . . . . . . . . Walls Destroyed . | . . . . . . . . . . . . . . . Machines Disabled . | . . . . . . . . . . . . . . . Actions | -11 -10 -10 -9 -9 -9 -8 -8 -8 -7 -7 -7 -7 -7 -7 --------- Run | Yrd Mat Min Mat Min Exi Min Mat Sto Fac Was Fac Low Low Zio Total 36986 | 12407 922 1506 2112 904 1079 302 1481 3290 3783 143 4507 994 913 2643 Wait 13555 | 10967 63 238 111 155 29 . 179 698 312 9 566 66 16 146 Move 21879 | 1402 759 1202 1789 678 942 302 1198 2406 3179 134 3731 907 881 2369 Hop 59 | . . . . . . . . 31 19 . 8 1 . . Pick Up 50 | 4 4 5 2 2 12 . 2 2 8 . 5 2 . 2 Fast Attach 92 | 7 1 1 9 1 14 . 6 24 12 . 10 . . 7 Attach 4 | . . 1 1 . . . . 1 . . . . . 1 Detach 6 | . . . . . 3 . 1 1 . . . . . 1 Swap 79 | 2 5 3 19 2 3 . 3 1 15 . 20 . 1 5 Drop 131 | 2 6 9 10 1 26 . 8 21 23 . 14 . . 11 Fire 691 | 23 70 35 133 44 44 . 52 79 69 . 50 9 15 68 Melee 195 | . . . . . . . . . 92 . 72 7 . 24 Ram . | . . . . . . . . . . . . . . . Kick . | . . . . . . . . . . . . . . . Crush . | . . . . . . . . . . . . . . . Escape Stasis 18 | . . . . . . . . . 18 . . . . . Rewire . | . . . . . . . . . . . . . . . Trap 22 | . . . . . . . . . . . 22 . . . Miscellaneous 205 | . 14 12 38 21 6 . 32 26 36 . 9 2 . 9 Route ------- -11/Scrapyard -10/Materials (discovered 5 exits: *Mat x3 / *Min / Sub) -10/Mines (discovered 3 exits: *Mat x2 / *Sub) -9/Materials (discovered 5 exits: *Mat x3 / *Min x2) -9/Mines (discovered 4 exits: *Mat x2 / *Exi / *Zio) -9/Exiles (discovered 2 exits: [*Min x2]) -8/Mines -8/Materials (discovered 4 exits: *Fac x3 / *Sto) -8/Storage (discovered 2 exits: *Fac / *Rec) -7/Factory (discovered 6 exits: *Fac x4 / *Low x2) -7/Waste -7/Factory (discovered 6 exits: *Fac x4 / *Low x2) -7/Lower Caves -7/Lower Caves (discovered 2 exits: *Fac / *Zio) -7/Zion (discovered 2 exits: [Dee] / *Pro) History --------- Turn | Location | Event 6 | -11/Scrapyard | Discovered new exit (range 16) 13065 | -11/Scrapyard | Upgraded with Propulsion slot (x1) 13065 | -11/Scrapyard | Upgraded with Utility slot (x1) 13065 | -11/Scrapyard | Upgraded with Weapon slot (x1) 13144 | -11/Scrapyard | Entered Materials 13145 | -10/Materials | Build established: Mutant 13473 | -10/Materials | Discovered new exit (range 16) 13482 | -10/Materials | Build established: Hacker-Mutant 13629 | -10/Materials | Central database locked down 13638 | -10/Materials | Discovered new exit (range 15) 13669 | -10/Materials | Identified exit to Materials 13669 | -10/Materials | Identified exit to Subcaves 13669 | -10/Materials | Identified exit to Mines 13736 | -10/Materials | Learned location of 2 exits from Mines 13738 | -10/Materials | Learned Storage interactive machine intel 13741 | -10/Materials | Learned location of Recycling (-8) 13753 | -10/Materials | Learned location of Mines (-10) 13761 | -10/Materials | Reached level 2 14037 | -10/Materials | Entered Mines 14377 | -10/Mines | Met a Derelict shopkeep closing up shop 14388 | -10/Mines | Reached level 3 14447 | -10/Mines | Learned Materials emergency access door positions 14617 | -10/Mines | A weapon hastily lodged in a ceiling crevice suddenly fell to the ground 15349 | -10/Mines | Entered Materials 15350 | -9/Materials | Identified exit to Materials 15351 | -9/Materials | Reached level 4 15432 | -9/Materials | Discovered new exit (range 4) 15448 | -9/Materials | Upgraded with Utility slot (x1) 15606 | -9/Materials | Discovered exit to Materials (range 12) 15739 | -9/Materials | Reached level 5 15768 | -9/Materials | Discovered exit to Materials (range 17) 15768 | -9/Materials | Central database locked down 15808 | -9/Materials | Learned location of 1 exit from Storage 15862 | -9/Materials | Identified exit to Mines 15905 | -9/Materials | Learned location of Zion (-7) 15967 | -9/Materials | Learned Storage terminal intel 16056 | -9/Materials | Reached level 6 16481 | -9/Materials | Reached level 7 16854 | -9/Materials | Reached level 8 17381 | -9/Materials | Upgraded with Weapon slot (x1) 17484 | -9/Materials | Entered Mines 17486 | -9/Mines | Identified exit to Exiles 17486 | -9/Mines | Reached level 9 17571 | -9/Mines | Assembled infested the area 17573 | -9/Mines | Received a Mining Laser from a helpful Derelict 17577 | -9/Mines | Assisted by a Guerilla fighting off Assembled 17680 | -9/Mines | Build established: Hacker-Tank 18069 | -9/Mines | A Derelict revealed a hidden shortcut to a safe place 18218 | -9/Mines | Learned 2 Materials zone layouts 18440 | -9/Mines | Deemed a non-threat by the Exiles lab entrance 18444 | -9/Mines | Entered Exiles 18457 | -9/Exiles | Discovered new exit (range 15) 18470 | -9/Exiles | Met 8R-AWN 18483 | -9/Exiles | Met EX-HEX 18505 | -9/Exiles | Met EX-BIN 18516 | -9/Exiles | Aligned with FarCom system 18517 | -9/Exiles | Given EX-Vault access code 18536 | -9/Exiles | Opened EX-Vault 18541 | -9/Exiles | Found PSU Rigger 18563 | -9/Exiles | Warned to stay clear of 0b10 Research branches 18631 | -9/Exiles | Met EX-DEC 18775 | -9/Exiles | Build established: Hacker-Mutant 19023 | -9/Exiles | Attacked by the Exiles 19137 | -9/Exiles | Build established: Hacker-Tank 19174 | -9/Exiles | Destroyed 8R-AWN 19182 | -9/Exiles | Found Prototype Device 19182 | -9/Exiles | Identified AS-neutralizer No. 17b 19188 | -9/Exiles | Found Prototype Processor 19188 | -9/Exiles | Identified Exp. Targeting Computer 19214 | -9/Exiles | Core integrity fell below 50% 19352 | -9/Exiles | Found Field Lobotomy Kit 19420 | -9/Exiles | Discovered new exit (range 14) 19430 | -9/Exiles | Left Exiles lab with Field Lobotomy Kit 19430 | -9/Exiles | Entered Mines 19432 | -8/Mines | Reached level 10 19476 | -8/Mines | Discovered exit to Materials (range 13) 19489 | -8/Mines | Build established: Hacker-Gunner 19672 | -8/Mines | Entered Materials 19673 | -8/Materials | Identified exit to Factory 19674 | -8/Materials | Reached level 11 19964 | -8/Materials | Discovered exit to Factory (range 10) 19974 | -8/Materials | Upgraded with Utility slot (x1) 20227 | -8/Materials | Identified exit to Storage 20567 | -8/Materials | Reached level 12 20581 | -8/Materials | Discovered exit to Factory (range 10) 20680 | -8/Materials | Learned Storage emergency access door positions 20757 | -8/Materials | Learned location of 1 exit from Storage 20885 | -8/Materials | Learned location of 1 exit from Lower Caves 20970 | -8/Materials | Learned location of Lower Caves (-6) 21081 | -8/Materials | Learned location of 1 exit from Storage 21138 | -8/Materials | Learned location of 3 exits from Factory 21210 | -8/Materials | Entered Storage 21211 | -8/Storage | Identified exit to Recycling 21213 | -8/Storage | Loaded intel: 21 interactive machine locations 21214 | -8/Storage | Loaded intel: 16 terminal locations 21277 | -8/Storage | Garrison activated, responded to threat 21845 | -8/Storage | Reached level 13 22076 | -8/Storage | Learned location of Armory (-4) 22120 | -8/Storage | Used back door to open Recycling access 22505 | -8/Storage | Learned 8 Factory zone layouts 22538 | -8/Storage | Learned Factory stockpile data 22539 | -8/Storage | Learned location of 2 exits from Factory 22566 | -8/Storage | Loaded intel: 9 trap records 22700 | -8/Storage | Upgraded with Propulsion slot (x2) 22845 | -8/Storage | Upgraded with Power slot (x1) 23090 | -8/Storage | Build established: Hacker-Sprinter 23199 | -8/Storage | Central database locked down 23398 | -8/Storage | Upgraded with Propulsion slot (x1) 23443 | -8/Storage | Upgraded with Propulsion slot (x1) 23458 | -8/Storage | Upgraded with Utility slot (x2) 23562 | -8/Storage | Entered Factory 23563 | -7/Factory | Identified exit to Factory 23563 | -7/Factory | Identified exit to Lower Caves 23564 | -7/Factory | Reached level 14 23764 | -7/Factory | Garrison activated, responded to threat 23815 | -7/Factory | Destroyed 7 combat bots 23878 | -7/Factory | Learned 4 Lower Caves zone layouts 23878 | -7/Factory | Build established: Hacker-Scout 23927 | -7/Factory | Learned 2 Extension zone layouts 23986 | -7/Factory | Reached level 15 23997 | -7/Factory | Learned location of Proximity Caves (-5) 24015 | -7/Factory | Loaded intel: 4 garrison access locations 24080 | -7/Factory | Learned Hub_04(d) emergency access door positions 24088 | -7/Factory | Fabricated Enh. Nuclear Core? 24280 | -7/Factory | Cargo convoy interrupted 24321 | -7/Factory | Destroyed 10 combat bots 24653 | -7/Factory | Reached level 16 24672 | -7/Factory | Upgraded with Utility slot (x2) 24904 | -7/Factory | Fabricated Corruption Screen (x2) 25005 | -7/Factory | Manually triggered Chute Trap 25005 | -7/Factory | Sucked down chute 25005 | -7/Factory | Entered Waste 25006 | -7/Waste | Identified exit to Factory 25009 | -7/Waste | Spotted C-40 Crusher 25020 | -7/Waste | EMP discharged 25022 | -7/Waste | Spotted C-40 Crusher 25022 | -7/Waste | Spotted C-40 Crusher 25025 | -7/Waste | Spotted C-40 Crusher 25030 | -7/Waste | Spotted C-40 Crusher 25038 | -7/Waste | Spotted C-40 Crusher 25041 | -7/Waste | Entered Factory 25597 | -7/Factory | Fabricated Imp. Trap Extractor (x2) 25647 | -7/Factory | Repaired Broken Proton Burst Cannon? 25810 | -7/Factory | Discovered exit to Factory (range 8) 25823 | -7/Factory | Discovered exit to Factory (range 14) 26061 | -7/Factory | Garrison activated, responded to threat 26594 | -7/Factory | Cargo convoy interrupted 26636 | -7/Factory | Found Prototype Energy Cannon 26636 | -7/Factory | Identified Exp. Thermic Cannon 26721 | -7/Factory | Entered Lower Caves 26721 | -7/Lower Caves | Accompanied by 1 ally 26721 | -7/Lower Caves | Spotted PK-GGP(f) 26722 | -7/Lower Caves | Identified exit to Lower Caves 26723 | -7/Lower Caves | Encountered a Master Thief 26724 | -7/Lower Caves | Field Lobotomy Kit stolen by Master Thief 26726 | -7/Lower Caves | Spotted 45-A3Q(f) 26727 | -7/Lower Caves | Encountered a Master Thief 26728 | -7/Lower Caves | Destroyed PK-GGP(f) 26731 | -7/Lower Caves | Proton Burst Cannon stolen by Master Thief 26781 | -7/Lower Caves | Reached level 17 26791 | -7/Lower Caves | Learned 12 Factory zone layouts 26889 | -7/Lower Caves | Learned 4 Factory zone layouts 27009 | -7/Lower Caves | Entered another Lower Caves area 27009 | -7/Lower Caves | Accompanied by 1 ally 27038 | -7/Lower Caves | Discovered exit to Factory (range 6) 27113 | -7/Lower Caves | Encountered a Warlord checkpoint 27135 | -7/Lower Caves | Learned 4 Factory zone layouts 27153 | -7/Lower Caves | Discovered new exit (range 14) 27153 | -7/Lower Caves | Spotted MS-ZGE(f) 27154 | -7/Lower Caves | Spotted JP-Y19(f) 27155 | -7/Lower Caves | Encountered a Master Thief 27155 | -7/Lower Caves | Encountered a Master Thief 27169 | -7/Lower Caves | Spotted J7-W5B(f) 27176 | -7/Lower Caves | Encountered a Master Thief 27190 | -7/Lower Caves | Spotted MA-5BZ(f) 27191 | -7/Lower Caves | Encountered a Master Thief 27229 | -7/Lower Caves | Identified exit to Zion 27233 | -7/Lower Caves | Entered Zion 27256 | -7/Zion | Discovered new exit (range 10) 27284 | -7/Zion | Received a visual enhancement algorithm 27304 | -7/Zion | Learned location of Extension (-6) 27319 | -7/Zion | Met Imprinter 27343 | -7/Zion | Discovered new exit (range 14) 27357 | -7/Zion | Upgraded with Weapon slot (x1) 27357 | -7/Zion | Found Prototype Energy Gun 27357 | -7/Zion | Identified Storm Laser 27768 | -7/Zion | Identified exit to Proximity Caves 27880 | -7/Zion | Attacked by Zionites 27993 | -7/Zion | Destroyed Imprinter 27995 | -7/Zion | Extracted access codes from Imprinter's data core 28034 | -7/Zion | Spotted 0U-0EB(B) 28035 | -7/Zion | Spotted 81-ZXX(B) 28036 | -7/Zion | 99-TNT came to Zion's defense 28056 | -7/Zion | Destroyed 0U-0EB(B) 28069 | -7/Zion | Destroyed 81-ZXX(B) 28124 | -7/Zion | Core integrity fell below 50% 28175 | -7/Zion | Destroyed by 99-TNT with 99-TNT's Nukerbomber Last Messages --------------- >>parse_system Reading system data... New IDs: Hvy. Antimatter Reactor Exp. Weapon Shielding Exp. Shock Absorption System Exp. Matter Compressor 99-TNT's Nukerbomber 28143_ CR-A16 system terminally corrupted. 28143_ Imp. Melee Analysis Suite fried. 28145_ Acquired 91 matter. 28146_ Dropped Datajack. 28147_ Dropped Gui. EMP Blaster. 28148_ Acquired Storm Laser. 28154_ Lgt. Deuterium Engine melted. 28154_ Airjet melted. 28154_ 8A-J3T(d) destroyed. 28158_ Upgraded: Heat Dissipation (+18) 28158_ Acquired 10 matter. 28173_ TI-ZOY(z) destroyed. Map ----- +----------------------------------------------------+ | ??????????????????????##??####?##?####??#????????? | | ????????????????????#?#?##??##?#?###?#??#?#??????? | | ??????????????#???##?#?#?#?#######?#?###??#??????? | | #????????#??????????#??######?##?#####?#?##??????? | | #??????????????????#?#### ###?##?##??#???###???? | | #???????????#????#?### ##??##??##?########??? | | ?#????????##?#????### > ####?#####?####??#??? | | ?#?????????##?#?##### ##?#######?###?????? | | ?#???????????#??###?# #######?###???####?? | | #???????#?#?#?#?#?### #################?#?? | | #?#???????#?#?#???#### ###!=#??######?####?? | | ???#??#???##????##### ] ##! !##########?#???? | | ????#???????#?##?###### # ###[ /####?####??##?? | | #??##?##?######?###"""##= ##### /######?#######? | | #############?#####" "## %#####/ # ########??? | | #?######?#?###### / ## #### # ########## | | #########?###### # #### # #####?#### | | #########??#?### # #### ########## | | #####?########### ## #### #########? | | ########?###?#### ## ## ######?#? | | #########?####### ## ### #####?#? | | ##?########### # ###! ### ######## | | ############## #### ###% ### #### ######?## | | ############## ### ###= ######### ####??#?# | | "############# # ### #####?### ########?# | | """""""""""### ###@ ######### ######????? | | """""""""### ##d ## ########### | | ### = #### ## ########### | | = ###### # ######?##?# | | = ## ####### ############ | | ## ### ######### ############ | | """## ## ########### ##?########? | | " " """## ##### ##### #####?##### | | ## # #### ### #### ##### ####?####?# | | #########""#X #### #### ####### ##?####### | | ?########" ## ## ### ######## ####?##?? | | ##?######" ## ## ##### ### ######?## | | #########" ### ## ##### #####??#? | | ##?####?#""# ## ##### ####????? | | ####?######### ### #### ######??? | | ##?##?###??####### # ######??## | | ##?#?####?#?###### """ # #####?#??##? | | ##?#?##?##?##?#?## ### " " ### #?#??###?#?# | | ??#?######?####### ##### " " ### ##???##????? | | ??#???##?#??#######??### #?# #?####?####? | | ????????#????###??##?### c ### ##########?? | | ??????????#???#?####?### ## ##??##????? | | ????????#???#??####?#### ## #######???? | | ???????????##??#?#?????# ### ##?####??#?? | | ??????????????##????#?############# #?##??????? | +----------------------------------------------------+ Best States ------------- Heat Dissipation 81 Energy Generation 41 Energy Capacity 530 Matter Stores 300 Matter Capacity 300 Sight Range 20 Robot Scan Range 28 Terrain Scan Range 16 Terrain Scan Density 610 Jamming Range 12 Additional Mass Support 12 Corruption Block 8 Armor Coverage 150 Resistance: KI 20 Resistance: TH 20 Resistance: EX 20 Resistance: EM 20 Resistance: I 20 Resistance: S 20 Resistance: P 20 Weapon Cycling 25 Melee Speed Boost 30 Evasion (%) 66 Targeting Accuracy 12 Recoil Reduction 1 Energy Filtering 30 Offensive Hacking 36 Defensive Hacking 16 Trap Extractor Capacity 6 Item Schematics ----------------- Propulsion Shielding | -9/Materials | Extracted Rnf. Ion Engine | -9/Materials | Extracted Plasma Cutter | -8/Storage | Hacked Corruption Screen | -7/Factory | Hacked Imp. Trap Extractor | -7/Factory | Hacked Launcher Loader | -7/Factory | Hacked Flexi-carbon Leg | -7/Zion | Archive Launcher Guidance Computer | -7/Zion | Archive Armor Integrity Analyzer | -7/Zion | Archive Imp. Trap Scanner | -7/Zion | Archive Imp. Kinecellerator | -7/Zion | Archive Adv. Assault Cannon | -7/Zion | Archive Hvy. Plasma Cannon | -7/Zion | Archive Kinecellerator | -7/Zion | Archive Focal Shield | -7/Zion | Archive Adv. Terrain Scan Processor | -7/Zion | Archive Phase Shifter | -7/Zion | Archive Imp. Shield Generator | -7/Zion | Archive Lgt. Fission Core | -7/Zion | Archive Adv. Shield Generator | -7/Zion | Archive Gravmag System | -7/Zion | Archive Lrn. Phase Cannon | -7/Zion | Archive Phasing Sabre | -7/Zion | Free Bore Cannon | -7/Zion | Free Barrage Gun | -7/Zion | Free Hvy. Riot Gun | -7/Zion | Free Beamcaster | -7/Zion | Free Battle Cannon | -7/Zion | Free Robot Schematics ------------------ T-07 Excavator | -7/Zion | Archive Y-54 Guardian | -7/Zion | Archive Fabricated ------------ Enh. Nuclear Core | x1 | -7/Factory | Preloaded Corruption Screen | x2 | -7/Factory Imp. Trap Extractor | x2 | -7/Factory Alien Tech Used ----------------- None Achievements -------------- None Challenges ------------ None RPGLIKE | -11 -10 -10 -9 -9 -9 -8 -8 -8 -7 -7 -7 -7 -7 -7 --------- Run | Yrd Mat Min Mat Min Exi Min Mat Sto Fac Was Fac Low Low Zio Levels Raised 16 | . 1 1 5 1 . 1 2 1 3 . . 1 . . XP Earned 28465 | 4000 1925 1965 7850 1179 169 500 3194 1658 4273 67 958 320 255 152 XP Spent 27675 | 3050 400 . 1600 1000 1250 . 1170 11975 5300 . 500 . . 1430 Upgrades 52 | 7 2 . 2 1 1 . 2 23 9 . 1 . . 4 Power Slot 1 | . . . . . . . . 1 . . . . . . Propulsion Slot 5 | 1 . . . . . . . 4 . . . . . . Utility Slot 7 | 1 . . 1 . . . 1 2 2 . . . . . Weapon Slot 3 | 1 . . 1 . . . . . . . . . . 1 Heat Dissipation 5 | 1 . . . . . . 1 . . . . . . 3 Mass Support 1 | . . . . . . . . . 1 . . . . . Inventory Capacity 5 | 3 . . . 1 1 . . . . . . . . . Sight Range 3 | . . . . . . . . 2 . . 1 . . . Sensor Range 14 | . . . . . . . . 14 . . . . . . Terrain Scan Density 6 | . . . . . . . . . 6 . . . . . Hack Attack % 1 | . 1 . . . . . . . . . . . . . Hack Defense % 1 | . 1 . . . . . . . . . . . . . Protomatter Created 3148 | . 130 90 598 194 . . 352 402 675 . 450 132 59 66 Integrity Restored 3523 | . 292 226 611 354 144 . 535 438 621 . 87 17 . 198 Core 2643 | . 243 140 395 284 144 . 380 306 487 . 49 17 . 198 Parts 880 | . 49 86 216 70 . . 155 132 134 . 38 . . . Protomatter Decayed 1531 | . . 13 375 51 . . 131 142 237 . 399 127 56 . Game ------ Seed ImpulsePhysicsTrident Manual? 0 Play Time 06:06:45 Cumulative 594.1 hours Start 2024.09.11 @ 15:41:25 End 2024.09.11 @ 22:49:18 Sessions 6 Manual Loads 0 Difficulty Adventurer Special Mode Winter2019/RPGLIKE Game No. 49 Rogue 9 Adventurer 26 Explorer 14 Win Type - Total 34 Types 20/2/8/1/1/2/0/0/0 Lore% 78 Gallery% 88 Achievement% 77 Wizard Run 0 Options --------- Layout 0 ASCII 0 Keyboard 0 Movement Mouse Keybinds 0 Fullscreen 2 Font 36/Terminus++ Map View 76x50 Zoom Use 1% Tactical HUD 1 Map Filters NONE Filters NONE Steam 0 RUN: 18dda5b4-ed73-4c76-a30c-1ee173cf2c9d